[Event "UKR-ch Semifinal 2019"]
[Site "Omelnyk"]
[Date "2019.10.13"]
[Round "8.5"]
[White "Belous, Mikhail"]
[Black "Polivanov, Anatoliy"]
[Result "1/2-1/2"]
[ECO "A40"]
[WhiteElo "2319"]
[BlackElo "2411"]
[Annotator "NA"]
[PlyCount "89"]
[EventDate "2019.10.06"]
[EventType "swiss"]
[EventCountry "UKR"]
[SourceTitle "playchess.com"]
[Source "ChessBase"]
[SourceQuality "1"]
[TimeControl "40/5400+30:1800+30"]

1. d4 {[%emt 0:00:00]} e6 {[%emt 0:00:10]} 2. c4 {[%emt 0:00:00]} f5 {[%emt 0:00:05]} 3. Nf3 {[%emt 0:00:15]} Nf6 {[%emt 0:00:07]} 4. g3 {[%emt 0:00:13]} g6 {[%emt 0:00:25]} 5. Bg2 {[%emt 0:00:34]} Bg7 {[%emt 0:00:06]} 6. O-O {[%emt 0:00:39]} O-O {[%emt 0:00:17]} 7. Nc3 {[%emt 0:00:58]} d6 {[%emt 0:00:10]} 8. b3 {[%emt 0:02:26]} Nc6 {[%emt 0:00:40]} 9. Qc2 {[%emt 0:00:32]} Nb4 {[%emt 0:00:17]} 10. Qd2 {[%emt 0:01:58]} a5 {[%emt 0:01:34]} 11. a3 {[%emt 0:01:15]} Nc6 {[%emt 0:00:09]} 12. Qc2 {[%emt 0:07:22]} e5 {[%emt 0:02:37]} 13. dxe5 {[%emt 0:02:56]} dxe5 {[%emt 0:00:37]} 14. Rd1 {[%emt 0:01:30]} Bd7 {[%emt 0:06:24]} 15. Bb2 {[%emt 0:08:11]} e4 {[%emt 0:02:28]} 16. Ng5 {[%emt 0:02:13]} Qe7 {[%emt 0:08:36]} 17. Nh3 {[%emt 0:04:01]} Ne5 {[%emt 0:07:31]} 18. Nd5 {[%emt 0:02:40]} Nxd5 {[%emt 0:00:21]} 19. cxd5 {[%emt 0:00:12]} Rac8 {[%emt 0:09:01]} 20. f3 {[%emt 0:15:30]} exf3 {[%emt 0:20:09]} 21. exf3 {[%emt 0:00:21]} Rfe8 {[%emt 0:01:52]} 22. Re1 {[%emt 0:10:32]} Qd6 {[%emt 0:02:12]} 23. Rad1 {[%emt 0:01:41]} c5 {[%emt 0:05:53]} 24. Nf4 {[%emt 0:11:48]} c4 {[%emt 0:03:14]} 25. bxc4 {[%emt 0:02:18]} Rxc4 {[%emt 0:11:35]} 26. Qf2 {[%emt 0:01:16]} Rec8 {[%emt 0:00:28]} 27. Re2 {[%emt 0:06:29]} Ba4 {[%emt 0:00:32]} 28. Rdd2 {[%emt 0:03:21]} Bb5 {[%emt 0:05:14]} 29. Re1 {[%emt 0:08:37]} Bf6 {[%emt 0:07:49]} 30. Ne6 {[%emt 0:02:11]} Nd7 {[%emt 0:01:44]} 31. f4 {[%emt 0:00:04]} Ba4 {[%emt 0:00:47]} 32. Qe3 {[%emt 0:01:21]} Bxb2 {[%emt 0:00:42]} 33. Rxb2 {[%emt 0:00:03]} b5 {[%emt 0:00:16]} 34. Rbe2 {[%emt 0:01:33]} Qb6 {[%emt 0:01:16]} 35. Qxb6 {[%emt 0:00:46]} Nxb6 {[%emt 0:00:04]} 36. d6 {[%emt 0:00:28]} Rc1 {[%emt 0:01:14]} 37. Kf2 {[%emt 0:01:41]} Rxe1 {[%emt 0:00:12]} 38. Rxe1 {[%emt 0:00:26]} Rc2+ {[%emt 0:00:50]} 39. Re2 {[%emt 0:00:14]} b4 {[%emt 0:00:35]} 40. axb4 {[%emt 0:00:00]} axb4 {[%emt 0:00:00]} 41. Rxc2 {[%emt 0:09:02]} Bxc2 {[%emt 0:00:08]} 42. Ke2 {[%emt 0:09:24]} b3 {[%emt 0:10:17]} 43. Kd2 {[%emt 0:00:53]} Nc4+ {[%emt 0:00:55]} 44. Kc3 {[%emt 0:00:44]} Nxd6 {[%emt 0:00:08]} 45. Nd4 {[%emt 0:02:37]} 1/2-1/2

[Event "UKR-ch Semifinal 2019"]
[Site "Omelnyk"]
[Date "2019.10.13"]
[Round "8.6"]
[White "Bogdanovich, Stanislav"]
[Black "Levitskiy, Andrey"]
[Result "1-0"]
[ECO "B51"]
[WhiteElo "2616"]
[BlackElo "2379"]
[Annotator "RC"]
[PlyCount "87"]
[EventDate "2019.10.06"]
[EventType "swiss"]
[EventCountry "UKR"]
[SourceTitle "playchess.com"]
[Source "ChessBase"]
[SourceQuality "1"]
[TimeControl "40/5400+30:1800+30"]

1. e4 {[%emt 0:00:00]} c5 {[%emt 0:00:00]} 2. Nf3 {[%emt 0:00:00]} d6 {[%emt 0:00:47]} 3. Bb5+ {[%emt 0:00:00]} Nc6 {[%emt 0:00:30]} 4. O-O {[%emt 0:00:08]} Bd7 {[%emt 0:00:05]} 5. Re1 {[%emt 0:00:19]} Nf6 {[%emt 0:00:05]} 6. c3 {[%emt 0:00:13]} a6 {[%emt 0:00:02]} 7. Bf1 {[%emt 0:00:13]} Bg4 {[%emt 0:00:06]} 8. d4 {[%emt 0:00:14]} cxd4 {[%emt 0:02:05]} 9. cxd4 {[%emt 0:00:04]} d5 {[%emt 0:00:26]} 10. exd5 {[%emt 0:01:27]} Nxd5 {[%emt 0:02:05]} 11. Nc3 {[%emt 0:00:41]} e6 {[%emt 0:03:02]} 12. h3 {[%emt 0:00:37]} Bxf3 {[%emt 0:00:22]} 13. Qxf3 {[%emt 0:00:05]} Bb4 {[%emt 0:01:56]} 14. Qg3 {[%emt 0:01:05]} O-O {[%emt 0:07:50]} 15. Bh6 {[%emt 0:00:35]} Qf6 {[%emt 0:03:12]} 16. Bg5 {[%emt 0:00:21]} Qg6 {[%emt 0:03:45]} 17. Bd3 {[%emt 0:00:49]} f5 {[%emt 0:01:43]} 18. Bc4 {[%emt 0:00:58]} Bxc3 {[%emt 0:09:45]} 19. bxc3 {[%emt 0:00:29]} Kh8 {[%emt 0:09:23]} 20. Re2 {[%emt 0:30:25]} Rae8 {[%emt 0:20:37]} 21. Rae1 {[%emt 0:04:05]} h6 {[%emt 0:22:19]} 22. Bd2 {[%emt 0:06:51]} Qf7 {[%emt 0:07:26]} 23. Qd6 {[%emt 0:01:39]} Na5 {[%emt 0:00:43]} 24. Bxd5 {[%emt 0:13:13]} exd5 {[%emt 0:00:04]} 25. Re7 {[%emt 0:00:25]} Rxe7 {[%emt 0:00:55]} 26. Rxe7 {[%emt 0:00:04]} Qf6 {[%emt 0:00:48]} 27. Re6 {[%emt 0:00:19]} Qd8 {[%emt 0:00:40]} 28. Qe5 {[%emt 0:00:03]} Nc4 {[%emt 0:01:03]} 29. Rxh6+ {[%emt 0:01:51]} Kg8 {[%emt 0:00:01]} 30. Qe6+ {[%emt 0:00:12]} Rf7 {[%emt 0:00:03]} 31. Qg6 {[%emt 0:01:01]} Rf6 {[%emt 0:01:47]} 32. Qh7+ {[%emt 0:00:52]} Kf7 {[%emt 0:00:04]} 33. Rxf6+ {[%emt 0:02:55]} Qxf6 {[%emt 0:00:06]} 34. Bf4 {[%emt 0:00:02]} Qe6 {[%emt 0:01:02]} 35. h4 {[%emt 0:03:09]} Qg6 {[%emt 0:01:56]} 36. Qh8 {[%emt 0:00:07]} Qg4 {[%emt 0:00:44]} 37. g3 {[%emt 0:04:16]} Qd1+ {[%emt 0:00:32]} 38. Kg2 {[%emt 0:00:04]} Qd3 {[%emt 0:00:12]} 39. Qc8 {[%emt 0:03:58]} Qe4+ {[%emt 0:00:31]} 40. Kh2 {[%emt 0:00:00]} b5 {[%emt 0:00:00]} 41. Qd7+ {[%emt 0:04:50]} Kg8 {[%emt 0:02:18]} 42. h5 {[%emt 0:00:09]} Nb2 {[%emt 0:08:35]} 43. h6 {[%emt 0:03:39]} gxh6 {[%emt 0:00:03]} 44. Be5 {[%emt 0:00:07]} 1-0

[Event "UKR-ch Semifinal 2019"]
[Site "Omelnyk"]
[Date "2019.10.13"]
[Round "8.7"]
[White "Bondar, Dmytro"]
[Black "Matviishen, Viktor"]
[Result "1/2-1/2"]
[ECO "C50"]
[WhiteElo "2281"]
[BlackElo "2494"]
[Annotator "ChessBase"]
[PlyCount "139"]
[EventDate "2019.10.06"]
[EventType "swiss"]
[EventCountry "UKR"]
[SourceTitle "playchess.com"]
[Source "ChessBase"]
[SourceQuality "1"]
[TimeControl "40/5400+30:1800+30"]

1. e4 {[%emt 0:00:00]} e5 {[%emt 0:00:09]} 2. Nf3 {[%emt 0:00:00]} Nc6 {[%emt 0:00:06]} 3. Bc4 {[%emt 0:00:00]} Bc5 {[%emt 0:00:12]} 4. O-O {[%emt 0:00:00]} Nf6 {[%emt 0:00:19]} 5. d4 {[%emt 0:00:00]} Bxd4 {[%emt 0:00:21]} 6. Nxd4 {[%emt 0:00:02]} Nxd4 {[%emt 0:00:03]} 7. f4 {[%emt 0:00:12]} d6 {[%emt 0:00:04]} 8. fxe5 {[%emt 0:00:05]} dxe5 {[%emt 0:00:04]} 9. Bg5 {[%emt 0:00:11]} Be6 {[%emt 0:01:48]} 10. Bxf6 {[%emt 0:14:49]} gxf6 {[%emt 0:00:03]} 11. Bxe6 {[%emt 0:00:07]} Nxe6 {[%emt 0:00:05]} 12. Nc3 {[%emt 0:02:37]} c6 {[%emt 0:10:51]} 13. Qxd8+ {[%emt 0:04:16]} Rxd8 14. Rxf6 {[%emt 0:00:22]} Rd2 {[%emt 0:00:46]} 15. Rf2 {[%emt 0:00:28]} Rxf2 {[%emt 0:00:04]} 16. Kxf2 {[%emt 0:00:06]} Nd4 {[%emt 0:00:13]} 17. Rc1 {[%emt 0:00:39]} Rg8 {[%emt 0:00:20]} 18. g3 {[%emt 0:02:14]} Rg6 {[%emt 0:00:40]} 19. Nb1 {[%emt 0:08:48]} Rf6+ {[%emt 0:02:31]} 20. Kg2 {[%emt 0:00:28]} Rd6 {[%emt 0:01:23]} 21. c3 {[%emt 0:01:27]} Ne6 {[%emt 0:00:07]} 22. Kf3 {[%emt 0:02:05]} b5 {[%emt 0:03:19]} 23. Ke3 {[%emt 0:07:28]} f6 {[%emt 0:01:36]} 24. Nd2 {[%emt 0:04:37]} Nc5 {[%emt 0:04:15]} 25. b4 {[%emt 0:06:46]} Nd3 {[%emt 0:00:16]} 26. Ra1 {[%emt 0:05:36]} Nb2 {[%emt 0:01:57]} 27. Rc1 {[%emt 0:01:27]} Nc4+ {[%emt 0:03:29]} 28. Nxc4 {[%emt 0:00:07]} bxc4 {[%emt 0:00:02]} 29. Rf1 {[%emt 0:00:26]} Ke7 {[%emt 0:14:10]} 30. Ke2 {[%emt 0:00:10]} Rd3 {[%emt 0:00:10]} 31. Rf3 {[%emt 0:00:13]} Rd8 {[%emt 0:00:08]} 32. a4 {[%emt 0:02:52]} a5 {[%emt 0:04:44]} 33. bxa5 {[%emt 0:01:00]} Rb8 {[%emt 0:00:02]} 34. Rf1 {[%emt 0:06:48]} Rb2+ {[%emt 0:00:03]} 35. Ke3 {[%emt 0:00:05]} Rb3 {[%emt 0:20:27]} 36. Ra1 {[%emt 0:03:41]} Kd6 {[%emt 0:02:50]} 37. a6 {[%emt 0:03:46]} Kc7 {[%emt 0:00:14]} 38. Rf1 {[%emt 0:00:47]} Kb6 {[%emt 0:07:16]} 39. Rxf6 {[%emt 0:00:27]} Rxc3+ {[%emt 0:00:06]} 40. Kd2 {[%emt 0:00:00]} Ra3 {[%emt 0:00:00]} 41. Rf7 {[%emt 0:06:15]} Kxa6 {[%emt 0:06:32]} 42. Rxh7 {[%emt 0:01:55]} Kb6 {[%emt 0:04:36]} 43. g4 {[%emt 0:03:14]} Kc5 {[%emt 0:00:08]} 44. g5 {[%emt 0:02:56]} Rxa4 {[%emt 0:12:58]} 45. g6 {[%emt 0:00:25]} Ra2+ {[%emt 0:01:01]} 46. Kc3 {[%emt 0:03:07]} Rg2 {[%emt 0:02:02]} 47. g7 {[%emt 0:01:14]} Rg6 {[%emt 0:03:53]} 48. Rh5 {[%emt 0:05:10]} Rxg7 {[%emt 0:00:07]} 49. Rxe5+ {[%emt 0:00:06]} Kd6 {[%emt 0:00:04]} 50. Rh5 {[%emt 0:00:14]} Rg4 {[%emt 0:00:43]} 51. Kd4 {[%emt 0:01:38]} c5+ {[%emt 0:00:41]} 52. Ke3 {[%emt 0:00:12]} Rg2 {[%emt 0:03:02]} 53. Rh6+ {[%emt 0:00:33]} Kd7 {[%emt 0:00:17]} 54. e5 {[%emt 0:01:54]} c3 {[%emt 0:00:01]} 55. Rd6+ {[%emt 0:00:05]} Kc7 {[%emt 0:00:04]} 56. Rd3 {[%emt 0:00:37]} c2 {[%emt 0:02:56]} 57. Rc3 {[%emt 0:00:03]} Kc6 {[%emt 0:00:15]} 58. Kd3 {[%emt 0:00:09]} Rg5 {[%emt 0:03:07]} 59. Rxc2 {[%emt 0:00:14]} Rxe5 {[%emt 0:00:02]} 60. h4 {[%emt 0:00:12]} Kd5 {[%emt 0:01:01]} 61. Rg2 {[%emt 0:00:15]} c4+ {[%emt 0:00:06]} 62. Kc3 {[%emt 0:00:06]} Re3+ {[%emt 0:00:06]} 63. Kc2 {[%emt 0:00:12]} Rh3 {[%emt 0:00:14]} 64. Rg8 {[%emt 0:00:14]} Rxh4 {[%emt 0:00:40]} 65. Rd8+ {[%emt 0:00:01]} Kc5 {[%emt 0:00:11]} 66. Rc8+ {[%emt 0:00:01]} Kd6 {[%emt 0:00:14]} 67. Kc3 {[%emt 0:00:10]} Rh1 {[%emt 0:00:05]} 68. Rxc4 {[%emt 0:00:08]} Rc1+ {[%emt 0:00:02]} 69. Kd3 {[%emt 0:00:01]} Rxc4 {[%emt 0:00:07]} 70. Kxc4 {[%emt 0:00:03]} 1/2-1/2

[Event "UKR-ch Semifinal 2019"]
[Site "Omelnyk"]
[Date "2019.10.13"]
[Round "8.8"]
[White "Solovchuk, Oleksiy"]
[Black "Neverov, Valeriy"]
[Result "1-0"]
[ECO "E70"]
[WhiteElo "2261"]
[BlackElo "2477"]
[Annotator "ChessBase"]
[PlyCount "99"]
[EventDate "2019.10.06"]
[EventType "swiss"]
[EventCountry "UKR"]
[SourceTitle "playchess.com"]
[Source "ChessBase"]
[SourceQuality "1"]
[TimeControl "40/5400+30:1800+30"]

1. d4 {[%emt 0:00:00]} Nf6 {[%emt 0:01:39]} 2. c4 g6 {[%emt 0:01:10]} 3. Nc3 {[%emt 0:00:00]} Bg7 {[%emt 0:00:02]} 4. e4 {[%emt 0:00:00]} d6 {[%emt 0:00:03]} 5. Bd3 {[%emt 0:00:03]} O-O {[%emt 0:02:03]} 6. Nge2 {[%emt 0:00:05]} Nbd7 {[%emt 0:02:07]} 7. Bc2 {[%emt 0:04:02]} a6 {[%emt 0:07:34]} 8. O-O {[%emt 0:00:57]} Rb8 {[%emt 0:03:08]} 9. a4 {[%emt 0:09:35]} e5 {[%emt 0:00:24]} 10. d5 {[%emt 0:04:27]} a5 {[%emt 0:00:29]} 11. Bg5 {[%emt 0:00:05]} h6 {[%emt 0:02:05]} 12. Bh4 {[%emt 0:00:53]} Nc5 {[%emt 0:05:14]} 13. f3 {[%emt 0:01:24]} Bd7 {[%emt 0:02:42]} 14. Qd2 {[%emt 0:04:32]} Nfxe4 {[%emt 0:06:20]} 15. Bxd8 {[%emt 0:00:09]} Nxd2 {[%emt 0:00:09]} 16. Bxc7 {[%emt 0:00:03]} Nxc4 {[%emt 0:16:55]} 17. Bxb8 {[%emt 0:00:41]} Rxb8 {[%emt 0:00:05]} 18. Ne4 {[%emt 0:03:45]} Nxb2 {[%emt 0:19:08]} 19. N2c3 {[%emt 0:08:25]} Nc4 {[%emt 0:08:56]} 20. Nxc5 {[%emt 0:02:01]} dxc5 {[%emt 0:00:08]} 21. Ne4 {[%emt 0:00:03]} Bf5 {[%emt 0:04:57]} 22. Rfc1 {[%emt 0:04:30]} Bf8 {[%emt 0:08:09]} 23. Nf6+ {[%emt 0:23:51]} Kg7 {[%emt 0:00:04]} 24. Bxf5 {[%emt 0:00:20]} Kxf6 {[%emt 0:00:04]} 25. Rxc4 {[%emt 0:00:03]} gxf5 {[%emt 0:01:47]} 26. Rb1 {[%emt 0:00:08]} b6 {[%emt 0:00:55]} 27. g3 {[%emt 0:00:59]} Bd6 {[%emt 0:00:57]} 28. Kf2 {[%emt 0:09:28]} Bc7 {[%emt 0:01:25]} 29. Ke3 {[%emt 0:00:54]} Rd8 {[%emt 0:00:36]} 30. Rd1 {[%emt 0:01:49]} Rd6 {[%emt 0:01:24]} 31. g4 {[%emt 0:03:50]} Bd8 {[%emt 0:01:42]} 32. h4 {[%emt 0:04:02]} h5 {[%emt 0:01:53]} 33. gxf5 {[%emt 0:05:03]} Kxf5 {[%emt 0:00:05]} 34. Re4 {[%emt 0:00:07]} Bf6 {[%emt 0:00:47]} 35. f4 {[%emt 0:02:17]} exf4+ {[%emt 0:00:32]} 36. Rxf4+ {[%emt 0:00:03]} Kg6 {[%emt 0:00:46]} 37. Rg1+ {[%emt 0:00:32]} Kh6 {[%emt 0:00:35]} 38. Ke4 {[%emt 0:00:15]} c4 {[%emt 0:01:26]} 39. Rc1 {[%emt 0:00:37]} c3 {[%emt 0:00:18]} 40. Rxf6+ {[%emt 0:00:00]} Rxf6 {[%emt 0:00:00]} 41. Rxc3 {[%emt 0:00:27]} Kg7 {[%emt 0:04:45]} 42. Ke5 {[%emt 0:00:17]} Rf1 {[%emt 0:02:52]} 43. Kd6 {[%emt 0:02:49]} Rf4 {[%emt 0:12:10]} 44. Kc7 {[%emt 0:00:05]} Rxh4 {[%emt 0:09:24]} 45. d6 {[%emt 0:00:04]} Rxa4 {[%emt 0:00:08]} 46. Rd3 {[%emt 0:00:06]} Re4 {[%emt 0:00:24]} 47. d7 {[%emt 0:00:04]} Re7 {[%emt 0:00:08]} 48. Kxb6 {[%emt 0:00:15]} Rxd7 {[%emt 0:01:46]} 49. Rxd7 {[%emt 0:00:03]} Kg6 {[%emt 0:00:59]} 50. Kc5 {[%emt 0:00:16]} 1-0

[Event "UKR-ch Semifinal 2019"]
[Site "Omelnyk"]
[Date "2019.10.14"]
[Round "9.1"]
[White "Golubka, Petro"]
[Black "Vysochin, Spartak"]
[Result "1/2-1/2"]
[ECO "D16"]
[WhiteElo "2471"]
[BlackElo "2497"]
[Annotator "RC"]
[PlyCount "31"]
[EventDate "2019.10.06"]
[EventType "swiss"]
[EventCountry "UKR"]
[SourceTitle "playchess.com"]
[Source "ChessBase"]
[SourceQuality "1"]
[TimeControl "40/5400+30:1800+30"]

1. c4 {[%emt 0:03:31]} c6 {[%emt 0:00:00]} 2. d4 {[%emt 0:10:31]} d5 {[%emt 0:00:00]} 3. Nc3 {[%emt 0:00:25]} Nf6 {[%emt 0:00:00]} 4. Nf3 {[%emt 0:00:16]} dxc4 {[%emt 0:00:03]} 5. a4 {[%emt 0:00:06]} e6 {[%emt 0:00:11]} 6. e3 {[%emt 0:02:53]} c5 {[%emt 0:00:13]} 7. Bxc4 {[%emt 0:00:08]} Nc6 {[%emt 0:00:33]} 8. O-O {[%emt 0:00:23]} cxd4 {[%emt 0:00:13]} 9. exd4 {[%emt 0:00:12]} Be7 {[%emt 0:00:05]} 10. Re1 {[%emt 0:01:06]} O-O {[%emt 0:00:26]} 11. Bf4 {[%emt 0:07:35]} Nb4 {[%emt 0:01:34]} 12. Qb3 {[%emt 0:14:16]} Bd7 {[%emt 0:14:26]} 13. Ne5 {[%emt 0:14:11]} Be8 {[%emt 0:03:28]} 14. Rad1 {[%emt 0:00:49]} Nfd5 {[%emt 0:17:47]} 15. Bxd5 {[%emt 0:11:45]} exd5 {[%emt 0:01:04]} 16. Nd3 {[%emt 0:03:08]} 1/2-1/2

[Event "UKR-ch Semifinal 2019"]
[Site "Omelnyk"]
[Date "2019.10.14"]
[Round "9.2"]
[White "Bogdanovich, Stanislav"]
[Black "Bernadskiy, Vitaliy"]
[Result "0-1"]
[ECO "D85"]
[WhiteElo "2616"]
[BlackElo "2554"]
[Annotator "RC"]
[PlyCount "84"]
[EventDate "2019.10.06"]
[EventType "swiss"]
[EventCountry "UKR"]
[SourceTitle "playchess.com"]
[Source "ChessBase"]
[SourceQuality "1"]
[TimeControl "40/5400+30:1800+30"]

1. d4 {[%emt 0:00:11]} Nf6 {[%emt 0:00:00]} 2. c4 {[%emt 0:00:15]} g6 {[%emt 0:00:00]} 3. Nc3 {[%emt 0:00:23]} d5 {[%emt 0:00:00]} 4. cxd5 {[%emt 0:00:32]} Nxd5 {[%emt 0:00:00]} 5. e4 {[%emt 0:00:19]} Nxc3 {[%emt 0:00:00]} 6. bxc3 {[%emt 0:00:07]} Bg7 {[%emt 0:00:00]} 7. Be3 {[%emt 0:00:46]} c5 {[%emt 0:00:05]} 8. Rc1 {[%emt 0:00:46]} Qa5 {[%emt 0:00:34]} 9. Qd2 {[%emt 0:00:36]} O-O {[%emt 0:02:10]} 10. Nf3 {[%emt 0:00:22]} Nd7 {[%emt 0:03:28]} 11. Bc4 {[%emt 0:11:53]} e6 {[%emt 0:02:25]} 12. O-O {[%emt 0:00:58]} b5 {[%emt 0:00:19]} 13. Be2 {[%emt 0:05:25]} Bb7 {[%emt 0:05:07]} 14. e5 {[%emt 0:02:45]} Bd5 {[%emt 0:04:10]} 15. a3 {[%emt 0:16:19]} Rfc8 {[%emt 0:01:15]} 16. Qd3 {[%emt 0:06:10]} Bc4 {[%emt 0:03:29]} 17. Qd1 {[%emt 0:00:07]} cxd4 {[%emt 0:01:08]} 18. Bxc4 {[%emt 0:02:02]} bxc4 {[%emt 0:04:58]} 19. cxd4 {[%emt 0:06:54]} Qxa3 {[%emt 0:02:20]} 20. d5 {[%emt 0:02:48]} Qd3 {[%emt 0:08:55]} 21. dxe6 {[%emt 0:02:11]} Qxd1 {[%emt 0:03:08]} 22. exf7+ {[%emt 0:01:14]} Kxf7 {[%emt 0:00:09]} 23. e6+ {[%emt 0:00:07]} Kxe6 {[%emt 0:00:45]} 24. Rcxd1 {[%emt 0:00:07]} Ne5 {[%emt 0:05:26]} 25. Ng5+ {[%emt 0:04:08]} Ke7 {[%emt 0:00:21]} 26. Rfe1 {[%emt 0:02:04]} h6 {[%emt 0:02:32]} 27. Ne4 {[%emt 0:00:04]} Rd8 {[%emt 0:04:03]} 28. Rb1 {[%emt 0:03:15]} Nd3 {[%emt 0:04:59]} 29. Rb7+ {[%emt 0:03:15]} Rd7 {[%emt 0:03:00]} 30. Reb1 {[%emt 0:01:41]} Bb2 {[%emt 0:02:43]} 31. Rxd7+ {[%emt 0:02:30]} Kxd7 {[%emt 0:00:07]} 32. Nc5+ {[%emt 0:00:05]} Nxc5 {[%emt 0:00:12]} 33. Rxb2 {[%emt 0:00:03]} Kc6 {[%emt 0:02:16]} 34. Rb4 {[%emt 0:03:07]} Kd5 {[%emt 0:00:03]} 35. Rb5 {[%emt 0:00:16]} Rc8 {[%emt 0:00:03]} 36. Kf1 {[%emt 0:01:30]} c3 {[%emt 0:05:44]} 37. Rb4 {[%emt 0:01:58]} Ne6 {[%emt 0:01:05]} 38. Ke2 {[%emt 0:01:21]} c2 {[%emt 0:01:19]} 39. Bc1 {[%emt 0:00:42]} a5 {[%emt 0:00:14]} 40. Rb5+ {[%emt 0:00:00]} Kc4 {[%emt 0:00:00]} 41. Rb6 {[%emt 0:12:04]} Nd4+ {[%emt 0:01:30]} 42. Kd2 {[%emt 0:00:33]} Re8 {[%emt 0:00:12]} 0-1

[Event "UKR-ch Semifinal 2019"]
[Site "Omelnyk"]
[Date "2019.10.14"]
[Round "9.3"]
[White "Kovchan, Alexander"]
[Black "Shalimov, Valery"]
[Result "1/2-1/2"]
[ECO "C78"]
[WhiteElo "2570"]
[BlackElo "2391"]
[Annotator "RC"]
[PlyCount "20"]
[EventDate "2019.10.06"]
[EventType "swiss"]
[EventCountry "UKR"]
[SourceTitle "playchess.com"]
[Source "ChessBase"]
[SourceQuality "1"]
[TimeControl "40/5400+30:1800+30"]

1. e4 {[%emt 0:00:10]} e5 {[%emt 0:00:00]} 2. Nf3 {[%emt 0:00:30]} Nc6 {[%emt 0:00:00]} 3. Bb5 {[%emt 0:00:59]} a6 {[%emt 0:00:00]} 4. Ba4 {[%emt 0:00:21]} Nf6 {[%emt 0:00:07]} 5. O-O {[%emt 0:00:34]} b5 {[%emt 0:00:58]} 6. Bb3 {[%emt 0:00:21]} Bc5 {[%emt 0:00:26]} 7. d3 {[%emt 0:03:18]} d6 {[%emt 0:02:19]} 8. h3 {[%emt 0:02:16]} O-O {[%emt 0:04:28]} 9. Be3 {[%emt 0:02:22]} Bxe3 {[%emt 0:00:32]} 10. fxe3 {[%emt 0:00:09]} Be6 {[%emt 0:00:09]} 1/2-1/2

[Event "UKR-ch Semifinal 2019"]
[Site "Omelnyk"]
[Date "2019.10.14"]
[Round "9.4"]
[White "Malovanyi, Yulian"]
[Black "Mirzoev, Emil"]
[Result "0-1"]
[ECO "B23"]
[WhiteElo "2351"]
[BlackElo "2455"]
[Annotator "RC"]
[PlyCount "102"]
[EventDate "2019.10.06"]
[EventType "swiss"]
[EventCountry "UKR"]
[SourceTitle "playchess.com"]
[Source "ChessBase"]
[SourceQuality "1"]
[TimeControl "40/5400+30:1800+30"]

1. e4 c5 {[%emt 0:03:25]} 2. Nc3 {[%emt 0:06:29]} Nc6 {[%emt 0:00:06]} 3. Nge2 {[%emt 0:00:13]} Nf6 {[%emt 0:00:08]} 4. g3 {[%emt 0:00:52]} d5 {[%emt 0:00:03]} 5. exd5 {[%emt 0:01:46]} Nxd5 {[%emt 0:00:07]} 6. Bg2 {[%emt 0:00:33]} Nf6 {[%emt 0:00:03]} 7. O-O {[%emt 0:01:20]} e6 {[%emt 0:00:03]} 8. d3 {[%emt 0:04:38]} Be7 {[%emt 0:00:40]} 9. h3 {[%emt 0:23:53]} O-O {[%emt 0:00:08]} 10. Be3 {[%emt 0:00:40]} Qc7 {[%emt 0:00:07]} 11. a4 {[%emt 0:09:01]} Rd8 {[%emt 0:01:05]} 12. Nb5 {[%emt 0:00:59]} Qd7 {[%emt 0:01:00]} 13. Na3 {[%emt 0:01:41]} Nd5 {[%emt 0:05:17]} 14. Bd2 {[%emt 0:00:37]} Rb8 {[%emt 0:01:11]} 15. Nc4 {[%emt 0:00:47]} b6 {[%emt 0:00:22]} 16. Nf4 {[%emt 0:03:13]} Nf6 {[%emt 0:03:35]} 17. Re1 {[%emt 0:02:29]} Bb7 {[%emt 0:01:05]} 18. Bc3 {[%emt 0:01:11]} Rbc8 {[%emt 0:10:24]} 19. Nh5 {[%emt 0:04:35]} Nd4 {[%emt 0:06:13]} 20. Bxd4 {[%emt 0:03:34]} cxd4 {[%emt 0:00:25]} 21. Nxf6+ {[%emt 0:01:45]} Bxf6 {[%emt 0:01:54]} 22. Qe2 {[%emt 0:06:59]} Bd5 {[%emt 0:01:09]} 23. b3 {[%emt 0:02:06]} Qc6 {[%emt 0:06:23]} 24. Be4 {[%emt 0:00:38]} Rc7 {[%emt 0:03:09]} 25. b4 {[%emt 0:07:56]} h6 {[%emt 0:16:54]} 26. b5 {[%emt 0:02:08]} Qc5 {[%emt 0:03:04]} 27. a5 {[%emt 0:01:15]} Bxc4 {[%emt 0:01:26]} 28. dxc4 {[%emt 0:00:16]} d3 {[%emt 0:01:02]} 29. cxd3 {[%emt 0:01:44]} Bxa1 {[%emt 0:00:24]} 30. Rxa1 {[%emt 0:00:03]} Rcd7 {[%emt 0:00:21]} 31. axb6 {[%emt 0:01:12]} axb6 {[%emt 0:00:03]} 32. g4 {[%emt 0:01:14]} g6 {[%emt 0:01:02]} 33. Kh1 {[%emt 0:01:55]} Kg7 {[%emt 0:01:23]} 34. Rd1 {[%emt 0:02:30]} Rd4 {[%emt 0:01:28]} 35. Rg1 {[%emt 0:00:54]} R4d7 {[%emt 0:01:03]} 36. Rg3 {[%emt 0:00:24]} Ra7 {[%emt 0:00:35]} 37. h4 {[%emt 0:01:20]} Qe5 {[%emt 0:01:32]} 38. g5 {[%emt 0:00:31]} hxg5 {[%emt 0:00:28]} 39. Rxg5 {[%emt 0:00:11]} Qf4 {[%emt 0:04:10]} 40. Qb2+ {[%emt 0:00:00]} Qf6 {[%emt 0:00:00]} 41. Qxf6+ {[%emt 0:06:03]} Kxf6 {[%emt 0:09:48]} 42. Kg2 {[%emt 0:00:53]} Ra5 {[%emt 0:04:00]} 43. Rg3 {[%emt 0:13:28]} Ke5 {[%emt 0:03:43]} 44. f4+ {[%emt 0:01:19]} Kd4 {[%emt 0:02:46]} 45. h5 {[%emt 0:00:34]} Ra2+ {[%emt 0:02:37]} 46. Kf3 {[%emt 0:00:58]} f5 {[%emt 0:00:39]} 47. Bc6 {[%emt 0:00:28]} gxh5 {[%emt 0:01:44]} 48. Rg6 {[%emt 0:01:02]} Kc3 {[%emt 0:00:43]} 49. Rxe6 {[%emt 0:00:46]} Rxd3+ {[%emt 0:00:06]} 50. Re3 {[%emt 0:00:09]} Rxe3+ {[%emt 0:00:03]} 51. Kxe3 {[%emt 0:00:14]} Kxc4 {[%emt 0:00:04] Kd4+} 0-1